[Event "Early-Titled-Tuesday-Blitz-February-13-2024"]
[Site "Chess.com"]
[Date "2024.02.13"]
[Round "6"]
[White "CFN_Good_Evening"]
[Black "Suleyman_Chess06"]
[Result "0-1"]
[WhiteElo "2083"]
[BlackElo "2768"]
[TimeControl "180+1"]
[EndTime "9:12:27 PST"]
[Termination "Suleyman_Chess06 won by resignation"]

1. e4 {[%clk 0:02:54.2]} 1... e6 {[%clk 0:03:00.2]} 2. d3 {[%clk 0:02:51.4]}
2... d5 {[%clk 0:03:00.9]} 3. Nd2 {[%clk 0:02:52.3]} 3... c5 {[%clk 0:03:01.3]}
4. g3 {[%clk 0:02:52.4]} 4... Nc6 {[%clk 0:03:02]} 5. Bg2 {[%clk 0:02:53]} 5...
g6 {[%clk 0:03:02.7]} 6. Ngf3 {[%clk 0:02:46.4]} 6... Bg7 {[%clk 0:03:03]} 7.
O-O {[%clk 0:02:47]} 7... Nf6 {[%clk 0:03:03.7]} 8. Re1 {[%clk 0:02:46.8]} 8...
O-O {[%clk 0:03:03.8]} 9. c3 {[%clk 0:02:44.3]} 9... b5 {[%clk 0:03:03.1]} 10.
e5 {[%clk 0:02:38.9]} 10... Nd7 {[%clk 0:03:03.1]} 11. d4 {[%clk 0:02:39.5]}
11... b4 {[%clk 0:03:02.9]} 12. Nb3 {[%clk 0:02:35.2]} 12... c4 {[%clk
0:03:01.4]} 13. Nbd2 {[%clk 0:02:28.5]} 13... bxc3 {[%clk 0:03:01.8]} 14. bxc3
{[%clk 0:02:28.6]} 14... Qa5 {[%clk 0:03:02.5]} 15. Qc2 {[%clk 0:02:25.1]} 15...
Nb6 {[%clk 0:03:01.5]} 16. a4 {[%clk 0:02:24.3]} 16... Bd7 {[%clk 0:02:59.1]}
17. Ba3 {[%clk 0:02:21.6]} 17... Rfc8 {[%clk 0:02:56.5]} 18. Reb1 {[%clk
0:02:05.1]} 18... Qxa4 {[%clk 0:02:46.1]} 19. Qc1 {[%clk 0:01:59.4]} 19... Qa6
{[%clk 0:02:44.6]} 20. Bf8 {[%clk 0:01:32.4]} 20... Qb7 {[%clk 0:02:42.3]} 21.
Bxg7 {[%clk 0:01:32.6]} 21... Kxg7 {[%clk 0:02:43]} 22. Nf1 {[%clk 0:01:28.4]}
22... Qc7 {[%clk 0:02:37.8]} 23. h4 {[%clk 0:01:25.8]} 23... h6 {[%clk
0:02:28.3]} 24. h5 {[%clk 0:01:20.9]} 24... Ne7 {[%clk 0:02:25.3]} 25. N1h2
{[%clk 0:01:14.3]} 25... Bc6 {[%clk 0:02:20.3]} 26. Ng4 {[%clk 0:01:11.3]} 26...
Rh8 {[%clk 0:02:13]} 27. Nh4 {[%clk 0:00:49.6]} 27... Nd7 {[%clk 0:02:05.6]} 28.
hxg6 {[%clk 0:00:42.1]} 28... Nxg6 {[%clk 0:01:55.1]} 29. Nf3 {[%clk 0:00:35.6]}
29... h5 {[%clk 0:01:51.8]} 30. Ne3 {[%clk 0:00:35.7]} 30... a5 {[%clk 0:01:47]}
31. Ng5 {[%clk 0:00:28.3]} 31... Qd8 {[%clk 0:01:39.3]} 32. f4 {[%clk
0:00:28.4]} 32... h4 {[%clk 0:01:34.9]} 33. Qe1 {[%clk 0:00:29]} 33... Qe7
{[%clk 0:01:27.9]} 34. Ng4 {[%clk 0:00:28]} 34... Rh5 {[%clk 0:01:17.6]} 35. Bf3
{[%clk 0:00:26.1]} 35... Rxg5 {[%clk 0:01:17.4]} 36. fxg5 {[%clk 0:00:26.3]}
36... Qxg5 {[%clk 0:01:18.3]} 37. Qe3 {[%clk 0:00:21.8]} 37... Qxe3+ {[%clk
0:01:11.2]} 38. Nxe3 {[%clk 0:00:22.2]} 38... hxg3 {[%clk 0:01:12.1]} 39. Ng2
{[%clk 0:00:18.7]} 39... a4 {[%clk 0:01:09.2]} 40. Bh5 {[%clk 0:00:19.1]} 40...
Ndf8 {[%clk 0:01:04.7]} 41. Bxg6 {[%clk 0:00:18.5]} 41... Nxg6 {[%clk
0:01:05.6]} 42. Rb6 {[%clk 0:00:18.4]} 42... Be8 {[%clk 0:01:05.9]} 43. Rb4
{[%clk 0:00:16.8]} 43... a3 {[%clk 0:01:05.8]} 44. Ra2 {[%clk 0:00:14.9]} 44...
Kf8 {[%clk 0:00:59.6]} 45. Rb1 {[%clk 0:00:15.4]} 45... Ra7 {[%clk 0:00:45.4]}
46. Rba1 {[%clk 0:00:15.7]} 46... Rb7 {[%clk 0:00:46]} 47. Rxa3 {[%clk
0:00:16.4]} 47... Rb2 {[%clk 0:00:46.6]} 48. R3a2 {[%clk 0:00:17.2]} 48... Rb3
{[%clk 0:00:46.9]} 49. Rc2 {[%clk 0:00:17.9]} 49... Ba4 {[%clk 0:00:38.3]} 50.
Rcc1 {[%clk 0:00:17.3]} 50... Be8 {[%clk 0:00:36.5]} 51. Rc2 {[%clk 0:00:17.1]}
51... Ne7 {[%clk 0:00:30.2]} 52. Ne3 {[%clk 0:00:16.3]} 52... Ng6 {[%clk
0:00:28.8]} 53. Kg2 {[%clk 0:00:16.8]} 53... Ke7 {[%clk 0:00:15.6]} 54. Kxg3
{[%clk 0:00:17.2]} 54... Bd7 {[%clk 0:00:15.7]} 55. Kf3 {[%clk 0:00:17.5]} 55...
Nh4+ {[%clk 0:00:14.9]} 56. Kf4 {[%clk 0:00:17.2]} 56... Ng6+ {[%clk 0:00:15.2]}
57. Kg5 {[%clk 0:00:17.7]} 57... Rb8 {[%clk 0:00:14.2]} 58. Ra7 {[%clk 0:00:18]}
58... Rg8 {[%clk 0:00:13.8]} 59. Kh5 {[%clk 0:00:13.9]} 59... Nf4+ {[%clk
0:00:13.3]} 60. Kh4 {[%clk 0:00:14.5]} 60... Ng6+ {[%clk 0:00:13.7]} 61. Kh3
{[%clk 0:00:15]} 61... Nf4+ {[%clk 0:00:14.1]} 62. Kh2 {[%clk 0:00:15.8]} 62...
Rh8+ {[%clk 0:00:09.5]} 63. Kg1 {[%clk 0:00:15.6]} 63... Rg8+ {[%clk 0:00:09.2]}
64. Kf1 {[%clk 0:00:15.7]} 64... Rg3 {[%clk 0:00:09.7]} 65. Nd1 {[%clk
0:00:13.2]} 65... Nd3 {[%clk 0:00:07.5]} 66. Rg2 {[%clk 0:00:07.6]} 66... Rf3+
{[%clk 0:00:07.7]} 67. Ke2 {[%clk 0:00:07.6]} 67... Rh3 {[%clk 0:00:06.9]} 68.
Kd2 {[%clk 0:00:07.8]} 68... Nf4 {[%clk 0:00:05.6]} 69. Rf2 {[%clk 0:00:07.4]}
69... Ng6 {[%clk 0:00:04.3]} 70. Ne3 {[%clk 0:00:07]} 70... Nh4 {[%clk
0:00:04.2]} 71. Nc2 {[%clk 0:00:06.6]} 71... Nf3+ {[%clk 0:00:04.4]} 72. Kc1
{[%clk 0:00:06.9]} 72... Ng5 {[%clk 0:00:05.1]} 73. Re2 {[%clk 0:00:05.6]} 73...
Rxc3 {[%clk 0:00:04.6]} 74. Re3 {[%clk 0:00:06.5]} 74... Rxe3 {[%clk 0:00:04.5]}
75. Nxe3 {[%clk 0:00:07.4]} 75... Ne4 {[%clk 0:00:04.2]} 76. Kc2 {[%clk
0:00:07.4]} 76... Kd8 {[%clk 0:00:04.8]} 77. Nd1 {[%clk 0:00:07.9]} 77... Be8
{[%clk 0:00:04.6]} 78. Nc3 {[%clk 0:00:08.1]} 78... Ng5 {[%clk 0:00:04.6]} 79.
Kb2 {[%clk 0:00:07.7]} 79... Nf3 {[%clk 0:00:04.6]} 80. Ka3 {[%clk 0:00:07.9]}
80... Nxd4 {[%clk 0:00:04.9]} 81. Kb4 {[%clk 0:00:08.1]} 81... Nc6+ {[%clk
0:00:05.5]} 82. Kc5 {[%clk 0:00:08.4]} 82... Nxa7 {[%clk 0:00:06.2]} 0-1

[Event "Early-Titled-Tuesday-Blitz-February-13-2024"]
[Site "Chess.com"]
[Date "2024.02.13"]
[Round "6"]
[White "DIMONBANAN"]
[Black "eagleclaw07"]
[Result "0-1"]
[WhiteElo "2572"]
[BlackElo "2801"]
[TimeControl "180+1"]
[EndTime "9:12:27 PST"]
[Termination "eagleclaw07 won by resignation"]

1. e4 {[%clk 0:03:00.9]} 1... Nf6 {[%clk 0:02:57.5]} 2. e5 {[%clk 0:03:00.7]}
2... Nd5 {[%clk 0:02:58]} 3. c4 {[%clk 0:02:59.7]} 3... Nb6 {[%clk 0:02:58.2]}
4. d4 {[%clk 0:03:00.3]} 4... d6 {[%clk 0:02:58.8]} 5. exd6 {[%clk 0:03:00.8]}
5... exd6 {[%clk 0:02:59.7]} 6. Nc3 {[%clk 0:03:00.5]} 6... Be7 {[%clk 0:03:00]}
7. Bd3 {[%clk 0:02:56.4]} 7... Nc6 {[%clk 0:02:57.8]} 8. Be3 {[%clk 0:02:56.5]}
8... O-O {[%clk 0:02:55.6]} 9. h3 {[%clk 0:02:52.4]} 9... Nb4 {[%clk 0:02:53.5]}
10. Be2 {[%clk 0:02:49.5]} 10... Bf5 {[%clk 0:02:49.8]} 11. Rc1 {[%clk
0:02:48.1]} 11... d5 {[%clk 0:02:44.9]} 12. b3 {[%clk 0:02:31.4]} 12... Bg5
{[%clk 0:02:08.6]} 13. Nf3 {[%clk 0:02:18.7]} 13... Bxe3 {[%clk 0:02:07.6]} 14.
fxe3 {[%clk 0:02:19.6]} 14... dxc4 {[%clk 0:02:03.3]} 15. bxc4 {[%clk
0:02:18.3]} 15... Qe7 {[%clk 0:02:00.4]} 16. a3 {[%clk 0:02:09.4]} 16... Nc2+
{[%clk 0:01:45.5]} 17. Rxc2 {[%clk 0:02:08.9]} 17... Bxc2 {[%clk 0:01:46.3]} 18.
Qxc2 {[%clk 0:02:09.8]} 18... Qxe3 {[%clk 0:01:46.4]} 19. Qd3 {[%clk 0:01:58.1]}
19... Qc1+ {[%clk 0:01:40.8]} 20. Nd1 {[%clk 0:01:53.7]} 20... Rfe8 {[%clk
0:01:37.6]} 21. O-O {[%clk 0:01:53.6]} 21... Rad8 {[%clk 0:01:33.3]} 22. Nc3
{[%clk 0:01:43.5]} 22... Qe3+ {[%clk 0:01:29.4]} 23. Qxe3 {[%clk 0:01:39.8]}
23... Rxe3 {[%clk 0:01:30.3]} 24. Rc1 {[%clk 0:01:40.3]} 24... c6 {[%clk
0:01:22]} 25. Ne5 {[%clk 0:01:29.1]} 25... Rxd4 {[%clk 0:01:17.7]} 26. Nf3
{[%clk 0:01:24.5]} 26... Rd8 {[%clk 0:01:12.5]} 27. Kf2 {[%clk 0:01:23.4]} 27...
Re7 {[%clk 0:01:11.4]} 28. Rb1 {[%clk 0:01:16.5]} 28... g6 {[%clk 0:01:05.6]}
29. c5 {[%clk 0:01:11]} 29... Nd5 {[%clk 0:01:03.5]} 30. Nxd5 {[%clk 0:00:49.4]}
30... Rxd5 {[%clk 0:01:04.4]} 31. Rc1 {[%clk 0:00:49.6]} 31... Kg7 {[%clk
0:00:57.2]} 32. Rc4 {[%clk 0:00:40.3]} 32... f5 {[%clk 0:00:53.8]} 33. Ra4
{[%clk 0:00:18.8]} 33... a6 {[%clk 0:00:43.3]} 34. Rc4 {[%clk 0:00:17.4]} 34...
Kf6 {[%clk 0:00:42.7]} 35. Bf1 {[%clk 0:00:13.1]} 35... Re4 {[%clk 0:00:41.4]}
36. Rc3 {[%clk 0:00:13.6]} 36... Ra4 {[%clk 0:00:39.3]} 37. Rb3 {[%clk
0:00:10.2]} 37... Rd7 {[%clk 0:00:39.5]} 38. Be2 {[%clk 0:00:07.4]} 38... Re4
{[%clk 0:00:39.3]} 39. Rc3 {[%clk 0:00:07.3]} 39... g5 {[%clk 0:00:38.3]} 40.
Bd3 {[%clk 0:00:07.5]} 40... Ree7 {[%clk 0:00:34.6]} 41. g4 {[%clk 0:00:06.7]}
41... f4 {[%clk 0:00:33.2]} 42. Bf5 {[%clk 0:00:06.9]} 42... Rd5 {[%clk
0:00:33.3]} 43. h4 {[%clk 0:00:06.9]} 43... h6 {[%clk 0:00:33.2]} 44. hxg5+
{[%clk 0:00:07]} 44... hxg5 {[%clk 0:00:34.1]} 45. Rc1 {[%clk 0:00:07.2]} 45...
Re3 {[%clk 0:00:10.5]} 46. Rh1 {[%clk 0:00:07]} 46... Rxc5 {[%clk 0:00:09.4]}
47. Rh6+ {[%clk 0:00:07.2]} 47... Ke7 {[%clk 0:00:10]} 48. Nxg5 {[%clk 0:00:07]}
48... Rb5 {[%clk 0:00:07.9]} 49. Re6+ {[%clk 0:00:05.7]} 49... Rxe6 {[%clk
0:00:07.6]} 50. Nxe6 {[%clk 0:00:06.6]} 50... Rb2+ {[%clk 0:00:05.8]} 51. Kf3
{[%clk 0:00:06.5]} 51... Rb3+ {[%clk 0:00:06.2]} 52. Kxf4 {[%clk 0:00:07.3]}
52... Rxa3 {[%clk 0:00:06.9]} 53. g5 {[%clk 0:00:04.5]} 53... Ra4+ {[%clk
0:00:07.4]} 54. Ke5 {[%clk 0:00:04.7]} 54... Ra5+ {[%clk 0:00:08]} 55. Ke4
{[%clk 0:00:05.4]} 55... Rd5 {[%clk 0:00:06.8]} 56. Nf4 {[%clk 0:00:04.9]} 56...
Rd1 {[%clk 0:00:06.1]} 57. g6 {[%clk 0:00:05.1]} 57... Kf6 {[%clk 0:00:06]} 58.
Nh5+ {[%clk 0:00:04.8]} 58... Ke7 {[%clk 0:00:05.1]} 59. g7 {[%clk 0:00:05.2]}
59... Rg1 {[%clk 0:00:05.2]} 60. Bh7 {[%clk 0:00:03.7]} 60... Kf7 {[%clk
0:00:05.6]} 61. g8=Q+ {[%clk 0:00:03.7]} 61... Rxg8 {[%clk 0:00:06.5]} 62. Bxg8+
{[%clk 0:00:04.6]} 62... Kxg8 {[%clk 0:00:07.3]} 63. Nf4 {[%clk 0:00:05.3]}
63... Kf7 {[%clk 0:00:07.7]} 64. Kd4 {[%clk 0:00:06.2]} 64... b6 {[%clk
0:00:07.1]} 65. Kc4 {[%clk 0:00:06.7]} 65... Ke7 {[%clk 0:00:07.2]} 66. Ng6+
{[%clk 0:00:06.4]} 66... Kd6 {[%clk 0:00:07.7]} 67. Nf4 {[%clk 0:00:07.1]} 67...
Ke5 {[%clk 0:00:08.1]} 68. Nd3+ {[%clk 0:00:07.4]} 68... Kd6 {[%clk 0:00:08.3]}
69. Nb4 {[%clk 0:00:07.9]} 69... b5+ {[%clk 0:00:07.7]} 70. Kb3 {[%clk
0:00:07.4]} 70... a5 {[%clk 0:00:08.1]} 71. Nc2 {[%clk 0:00:05.9]} 71... c5
{[%clk 0:00:09]} 72. Na3 {[%clk 0:00:06]} 72... Kc6 {[%clk 0:00:09.1]} 73. Nc2
{[%clk 0:00:06.3]} 73... c4+ {[%clk 0:00:09.2]} 74. Kc3 {[%clk 0:00:06.7]} 74...
Kc5 {[%clk 0:00:10.1]} 75. Ne3 {[%clk 0:00:06.3]} 75... b4+ {[%clk 0:00:11]} 76.
Kc2 {[%clk 0:00:06.5]} 76... Kd4 {[%clk 0:00:11.9]} 77. Nf5+ {[%clk 0:00:06.7]}
77... Ke5 {[%clk 0:00:10.3]} 78. Ne3 {[%clk 0:00:06.8]} 78... Kd4 {[%clk
0:00:10.8]} 79. Nf5+ {[%clk 0:00:07]} 79... Ke4 {[%clk 0:00:09.4]} 80. Nd6+
{[%clk 0:00:06.7]} 80... Kd5 {[%clk 0:00:10.1]} 81. Nf5 {[%clk 0:00:06]} 81...
a4 {[%clk 0:00:09.9]} 82. Ne3+ {[%clk 0:00:04.4]} 82... Kd4 {[%clk 0:00:10.2]}
83. Nf5+ {[%clk 0:00:04.6]} 83... Ke4 {[%clk 0:00:10.3]} 84. Ng3+ {[%clk
0:00:03.4]} 84... Kd5 {[%clk 0:00:08.4]} 85. Ne2 {[%clk 0:00:03.4]} 85... Ke4
{[%clk 0:00:07.5]} 86. Ng3+ {[%clk 0:00:03]} 86... Kf4 {[%clk 0:00:07.2]} 87.
Ne2+ {[%clk 0:00:03.3]} 87... Ke3 {[%clk 0:00:07.9]} 88. Nc1 {[%clk 0:00:02.9]}
88... a3 {[%clk 0:00:06.2]} 89. Na2 {[%clk 0:00:01.4]} 89... b3+ {[%clk
0:00:06.6]} 90. Kb1 {[%clk 0:00:02.1]} 90... bxa2+ {[%clk 0:00:07]} 91. Kxa2
{[%clk 0:00:03]} 91... Kd2 {[%clk 0:00:07.5]} 92. Kb1 {[%clk 0:00:02.3]} 92...
c3 {[%clk 0:00:07.6]} 93. Ka1 {[%clk 0:00:02.9]} 93... c2 {[%clk 0:00:08]} 94.
Ka2 {[%clk 0:00:03.8]} 94... c1=Q {[%clk 0:00:08.5]} 95. Kb3 {[%clk 0:00:04.7]}
95... Qb2+ {[%clk 0:00:09.1]} 96. Ka4 {[%clk 0:00:05.6]} 96... a2 {[%clk
0:00:09.6]} 0-1

[Event "Early-Titled-Tuesday-Blitz-February-13-2024"]
[Site "Chess.com"]
[Date "2024.02.13"]
[Round "6"]
[White "jcibarra"]
[Black "Gabrielian_Artur"]
[Result "0-1"]
[WhiteElo "2953"]
[BlackElo "2804"]
[TimeControl "180+1"]
[EndTime "9:13:01 PST"]
[Termination "Gabrielian_Artur won on time"]

1. e4 {[%clk 0:03:00.9]} 1... c5 {[%clk 0:02:59.5]} 2. Nf3 {[%clk 0:03:01.3]}
2... d6 {[%clk 0:02:59.9]} 3. d4 {[%clk 0:02:57.6]} 3... cxd4 {[%clk 0:03:00.1]}
4. Nxd4 {[%clk 0:02:58.5]} 4... Nf6 {[%clk 0:03:00.1]} 5. Nc3 {[%clk 0:02:59.1]}
5... Nc6 {[%clk 0:03:00]} 6. Nd5 {[%clk 0:02:58.8]} 6... Nxd5 {[%clk 0:02:56.9]}
7. exd5 {[%clk 0:02:59.7]} 7... Qa5+ {[%clk 0:02:57.1]} 8. Bd2 {[%clk
0:02:59.8]} 8... Qxd5 {[%clk 0:02:55.3]} 9. Nb5 {[%clk 0:03:00.5]} 9... Qe6+
{[%clk 0:02:55.5]} 10. Be2 {[%clk 0:03:00.9]} 10... Qd7 {[%clk 0:02:55.9]} 11.
c4 {[%clk 0:03:01.6]} 11... a6 {[%clk 0:02:45]} 12. Nc3 {[%clk 0:03:01.2]} 12...
e6 {[%clk 0:02:45.3]} 13. O-O {[%clk 0:02:58.1]} 13... Be7 {[%clk 0:02:45.3]}
14. Be3 {[%clk 0:02:58.6]} 14... O-O {[%clk 0:02:34.4]} 15. Qd2 {[%clk
0:02:58.7]} 15... Qc7 {[%clk 0:02:14.2]} 16. Rac1 {[%clk 0:02:58.6]} 16... Bd7
{[%clk 0:02:13.5]} 17. f4 {[%clk 0:02:41.9]} 17... Rac8 {[%clk 0:01:49.9]} 18.
f5 {[%clk 0:02:41.1]} 18... Ne5 {[%clk 0:01:44.5]} 19. b3 {[%clk 0:02:41.4]}
19... Bc6 {[%clk 0:01:41.4]} 20. Rf2 {[%clk 0:02:10.1]} 20... Qd7 {[%clk
0:01:32.5]} 21. Rcf1 {[%clk 0:01:54.9]} 21... Bf6 {[%clk 0:01:30.3]} 22. a4
{[%clk 0:01:15.7]} 22... d5 {[%clk 0:01:19.3]} 23. fxe6 {[%clk 0:01:14.4]} 23...
fxe6 {[%clk 0:01:19.1]} 24. cxd5 {[%clk 0:01:14.1]} 24... exd5 {[%clk 0:01:19]}
25. Bd4 {[%clk 0:01:09.6]} 25... Qe6 {[%clk 0:01:07.8]} 26. h3 {[%clk
0:01:08.1]} 26... Rce8 {[%clk 0:01:04.3]} 27. Rf5 {[%clk 0:01:05.9]} 27... Nd7
{[%clk 0:00:59.5]} 28. Bg4 {[%clk 0:00:58.5]} 28... Bxd4+ {[%clk 0:00:56.1]} 29.
Qxd4 {[%clk 0:00:59.4]} 29... Rxf5 {[%clk 0:00:49.9]} 30. Rxf5 {[%clk 0:00:59]}
30... Nf6 {[%clk 0:00:28.9]} 31. Rf3 {[%clk 0:00:37.7]} 31... Qe1+ {[%clk
0:00:26.9]} 32. Kh2 {[%clk 0:00:37.5]} 32... Qe5+ {[%clk 0:00:26.5]} 33. Qxe5
{[%clk 0:00:34.6]} 33... Rxe5 {[%clk 0:00:27.4]} 34. Rd3 {[%clk 0:00:33.9]}
34... h5 {[%clk 0:00:24.6]} 35. Bf3 {[%clk 0:00:33.4]} 35... g5 {[%clk
0:00:21.9]} 36. Kg3 {[%clk 0:00:31.8]} 36... Kf7 {[%clk 0:00:20.5]} 37. b4
{[%clk 0:00:31]} 37... g4 {[%clk 0:00:16.4]} 38. hxg4 {[%clk 0:00:29.1]} 38...
hxg4 {[%clk 0:00:16.7]} 39. Bd1 {[%clk 0:00:16.4]} 39... d4 {[%clk 0:00:15.3]}
40. Ne2 {[%clk 0:00:12.1]} 40... Ne4+ {[%clk 0:00:15]} 41. Kf4 {[%clk
0:00:12.5]} 41... Kf6 {[%clk 0:00:12.3]} 42. Nxd4 {[%clk 0:00:13.1]} 42... Nf2
{[%clk 0:00:12.2]} 43. Rd2 {[%clk 0:00:13.2]} 43... Re4+ {[%clk 0:00:11]} 44.
Kg3 {[%clk 0:00:12.7]} 44... Nh1+ {[%clk 0:00:06.6]} 45. Kh4 {[%clk 0:00:09.7]}
45... g3+ {[%clk 0:00:06.7]} 46. Bg4 {[%clk 0:00:01.8]} 46... Nf2 {[%clk
0:00:06]} 47. Kxg3 {[%clk 0:00:01.1]} 47... Nxg4 {[%clk 0:00:05.8]} 48. Nxc6
{[%clk 0:00:01.5]} 48... bxc6 {[%clk 0:00:06.3]} 49. Rd6+ {[%clk 0:00:02]} 49...
Ke5 {[%clk 0:00:04.6]} 50. Rxc6 {[%clk 0:00:02.6]} 50... Rxb4 {[%clk 0:00:03.7]}
51. Rxa6 {[%clk 0:00:03.2]} 51... Nf6 {[%clk 0:00:04.1]} 52. Ra5+ {[%clk
0:00:03.5]} 52... Ke6 {[%clk 0:00:04.2]} 53. Ra6+ {[%clk 0:00:03.9]} 53... Ke5
{[%clk 0:00:04.6]} 54. Ra8 {[%clk 0:00:04.5]} 54... Ne4+ {[%clk 0:00:04.6]} 55.
Kf3 {[%clk 0:00:05]} 55... Rb3+ {[%clk 0:00:04.5]} 56. Ke2 {[%clk 0:00:05.6]}
56... Rb2+ {[%clk 0:00:04]} 57. Ke3 {[%clk 0:00:06.2]} 57... Rb3+ {[%clk
0:00:04.4]} 58. Ke2 {[%clk 0:00:06.9]} 58... Nd6 {[%clk 0:00:04.6]} 59. a5
{[%clk 0:00:06.8]} 59... Ke4 {[%clk 0:00:04.6]} 60. Kd2 {[%clk 0:00:06]} 60...
Kd4 {[%clk 0:00:04]} 61. Kc2 {[%clk 0:00:05.9]} 61... Rg3 {[%clk 0:00:02.8]} 62.
a6 {[%clk 0:00:05.7]} 62... Kc5 {[%clk 0:00:02.9]} 63. a7 {[%clk 0:00:05.5]}
63... Ra3 {[%clk 0:00:03]} 64. Kb2 {[%clk 0:00:04.6]} 64... Ra6 {[%clk
0:00:02.7]} 65. g4 {[%clk 0:00:04.9]} 65... Kc6 {[%clk 0:00:03.2]} 66. g5 {[%clk
0:00:05.2]} 66... Kb7 {[%clk 0:00:01.2]} 67. Rd8 {[%clk 0:00:05.3]} 67... Kxa7
{[%clk 0:00:01.7]} 68. g6 {[%clk 0:00:05.8]} 68... Nf5 {[%clk 0:00:02.2]} 69.
Rd7+ {[%clk 0:00:06.1]} 69... Kb8 {[%clk 0:00:02.6]} 70. Rf7 {[%clk 0:00:05.9]}
70... Nh6 {[%clk 0:00:01.8]} 71. Rf8+ {[%clk 0:00:04.1]} 71... Kc7 {[%clk
0:00:02.3]} 72. g7 {[%clk 0:00:04.1]} 72... Rg6 {[%clk 0:00:02.9]} 73. g8=Q
{[%clk 0:00:02.6]} 73... Nxg8 {[%clk 0:00:03.1]} 74. Rf7+ {[%clk 0:00:03.2]}
74... Kd6 {[%clk 0:00:03.6]} 75. Kc3 {[%clk 0:00:03.9]} 75... Ne7 {[%clk
0:00:04.3]} 76. Kd2 {[%clk 0:00:04]} 76... Rg5 {[%clk 0:00:04.8]} 77. Rf8 {[%clk
0:00:04.5]} 77... Nd5 {[%clk 0:00:05.3]} 78. Rd8+ {[%clk 0:00:04.4]} 78... Ke5
{[%clk 0:00:05.8]} 79. Re8+ {[%clk 0:00:05.1]} 79... Kd4 {[%clk 0:00:06.3]} 80.
Rd8 {[%clk 0:00:05.9]} 80... Rg2+ {[%clk 0:00:06.5]} 81. Ke1 {[%clk 0:00:06.5]}
81... Ke4 {[%clk 0:00:06.6]} 82. Re8+ {[%clk 0:00:06.5]} 82... Kd3 {[%clk
0:00:06.9]} 83. Rd8 {[%clk 0:00:06.5]} 83... Rg5 {[%clk 0:00:07.5]} 84. Ra8
{[%clk 0:00:05.3]} 84... Rf5 {[%clk 0:00:07.7]} 85. Rd8 {[%clk 0:00:05.3]} 85...
Re5+ {[%clk 0:00:07.5]} 86. Kd1 {[%clk 0:00:04.8]} 86... Rg5 {[%clk 0:00:05.4]}
87. Ke1 {[%clk 0:00:05]} 87... Kd4 {[%clk 0:00:05]} 88. Ke2 {[%clk 0:00:04.9]}
88... Rf5 {[%clk 0:00:04.7]} 89. Rd7 {[%clk 0:00:04.6]} 89... Rf6 {[%clk
0:00:04.5]} 90. Rd8 {[%clk 0:00:05]} 90... Ke4 {[%clk 0:00:05]} 91. Re8+ {[%clk
0:00:05]} 91... Kd4 {[%clk 0:00:05.4]} 92. Rd8 {[%clk 0:00:05.6]} 92... Ra6
{[%clk 0:00:06]} 93. Rd7 {[%clk 0:00:05.5]} 93... Ra3 {[%clk 0:00:06]} 94. Kd1
{[%clk 0:00:06.2]} 94... Ke4 {[%clk 0:00:05.9]} 95. Rd8 {[%clk 0:00:05.2]} 95...
Nf6 {[%clk 0:00:06.1]} 96. Rd6 {[%clk 0:00:04.5]} 96... Ke5 {[%clk 0:00:06.5]}
97. Rd8 {[%clk 0:00:04.6]} 97... Ne4 {[%clk 0:00:07]} 98. Re8+ {[%clk
0:00:04.4]} 98... Kf4 {[%clk 0:00:07]} 99. Ke2 {[%clk 0:00:04.3]} 99... Re3+
{[%clk 0:00:06]} 100. Kf1 {[%clk 0:00:02.2]} 100... Ng3+ {[%clk 0:00:06]} 101.
Kg2 {[%clk 0:00:02.9]} 101... Rxe8 {[%clk 0:00:06.6]} 0-1

[Event "Early-Titled-Tuesday-Blitz-February-13-2024"]
[Site "Chess.com"]
[Date "2024.02.13"]
[Round "7"]
[White "Caroexpert"]
[Black "The_Straightforward_Rook"]
[Result "1-0"]
[WhiteElo "2548"]
[BlackElo "2426"]
[TimeControl "180+1"]
[EndTime "9:14:57 PST"]
[Termination "Caroexpert won by resignation"]

1. d4 {[%clk 0:03:00.9]} 1... d5 {[%clk 0:02:59.6]} 2. Nf3 {[%clk 0:03:00.8]}
2... Nf6 {[%clk 0:02:58.2]} 3. c4 {[%clk 0:02:59.5]} 3... c6 {[%clk 0:02:58.2]}
4. cxd5 {[%clk 0:02:58]} 4... cxd5 {[%clk 0:02:58.2]} 5. Nc3 {[%clk 0:02:58.4]}
5... Nc6 {[%clk 0:02:58.6]} 6. Bf4 {[%clk 0:02:58.6]} 6... Bf5 {[%clk
0:02:58.9]} 7. e3 {[%clk 0:02:52.5]} 7... e6 {[%clk 0:02:58.8]} 8. Qb3 {[%clk
0:02:52.9]} 8... Na5 {[%clk 0:02:56.4]} 9. Qa4+ {[%clk 0:02:47.9]} 9... Nc6
{[%clk 0:02:46.2]} 10. Ne5 {[%clk 0:02:47.8]} 10... Rc8 {[%clk 0:02:41.3]} 11.
Nxc6 {[%clk 0:02:44.2]} 11... bxc6 {[%clk 0:02:40.5]} 12. Ba6 {[%clk 0:02:43.8]}
12... Be7 {[%clk 0:02:39.9]} 13. Bxc8 {[%clk 0:02:41.7]} 13... Qxc8 {[%clk
0:02:40.8]} 14. O-O {[%clk 0:02:42]} 14... O-O {[%clk 0:02:41.5]} 15. Rfc1
{[%clk 0:02:41.8]} 1-0

[Event "Early-Titled-Tuesday-Blitz-February-13-2024"]
[Site "Chess.com"]
[Date "2024.02.13"]
[Round "7"]
[White "atomicmate123"]
[Black "UnTucopalaTimba"]
[Result "1-0"]
[WhiteElo "2354"]
[BlackElo "1982"]
[TimeControl "180+1"]
[EndTime "9:15:35 PST"]
[Termination "atomicmate123 won by resignation"]

1. e4 {[%clk 0:03:00.9]} 1... c6 {[%clk 0:02:59.4]} 2. d4 {[%clk 0:02:59.9]}
2... d5 {[%clk 0:02:59.4]} 3. exd5 {[%clk 0:02:57.2]} 3... cxd5 {[%clk
0:02:58.4]} 4. Bf4 {[%clk 0:02:57.8]} 4... Nc6 {[%clk 0:02:55.8]} 5. c3 {[%clk
0:02:55]} 5... Nf6 {[%clk 0:02:53.1]} 6. Bd3 {[%clk 0:02:55]} 6... Bg4 {[%clk
0:02:48.6]} 7. Qb3 {[%clk 0:02:54.2]} 7... Qc8 {[%clk 0:02:45.1]} 8. Nd2 {[%clk
0:02:54.1]} 8... e6 {[%clk 0:02:44.1]} 9. Ngf3 {[%clk 0:02:53.9]} 9... Be7
{[%clk 0:02:41.5]} 10. O-O {[%clk 0:02:52.9]} 10... O-O {[%clk 0:02:41.1]} 11.
Rfe1 {[%clk 0:02:52.4]} 11... Re8 {[%clk 0:02:34.8]} 12. Ne5 {[%clk 0:02:52.3]}
12... Bh5 {[%clk 0:02:27.4]} 13. Ndf3 {[%clk 0:02:46.9]} 13... Nxe5 {[%clk
0:02:24.5]} 14. Nxe5 {[%clk 0:02:46.2]} 14... Nd7 {[%clk 0:02:17.5]} 15. Nxd7
{[%clk 0:02:39.9]} 15... Qxd7 {[%clk 0:02:15.1]} 16. Bb5 {[%clk 0:02:40.1]}
16... Qc8 {[%clk 0:02:07.3]} 17. Bxe8 {[%clk 0:02:39.7]} 17... Qxe8 {[%clk
0:02:05.9]} 18. Qxb7 {[%clk 0:02:36.3]} 1-0